Cogmind - Beta 14 @@@ ROGUE MODE // 2024.11.17 @ 11:44:29 Player: Fangrelle Result: Self-destructed Performance ------------- Evolutions (5) 2500 Regions Visited (11) 2200 Robots Destroyed (206) 1030 Value Destroyed (6467) 6467 Prototype IDs (44) 880 Alien Tech Used (0) 0 Bonus (-475) -475 TOTAL SCORE: 12602 Bonus ------- High Alert Combat Kills 387 Aligned with FarCom 300 Friendly Fire -1162 Cogmind --------- Core Integrity 367/1000 Matter 287/300 Energy 139/139 System Corruption 17% Temperature Cool (0) Movement Hovering (232) Ox2 Location -5/Factory Parts ------- > --- POWER (1) -------- Ion-Compressor Engine > --- PROPULSION (6) --- Hovering Gravjet-VTOL Exoskeleton > --- UTILITY (8) ------ Armored Scrap Engine Large Storage Unit Advanced Visual Processing Unit Phase Shifter Makeshift Weapon Shielding Hacking Suite > --- WEAPON (2) ------- Ballistic Penetrator Construct/G Katana > --- INVENTORY (15) --- Improved Cryofiber Web Improved Trap Scanner Makeshift Salvage Targeting Computer Makeshift Targeting Computer Improved Target Analyzer Hacking Suite Hacking Suite Relay Coupler [Proto] (99) Improved Component Analysis Suite Improved Trap Extractor (0/6) KN-7UR's Autopenetrator Improved Datajack Improved Remote Datajack Plasma Cutter Power Maul Peak State ------------ > --- POWER ------------ Micro Nuclear Core > --- PROPULSION ------- Hovering Gravjet-VTOL Exoskeleton Nuclear Pulse Array Nuclear Pulse Array > --- UTILITY ---------- Armored Scrap Engine Large Storage Unit Advanced Visual Processing Unit Microactuators Makeshift Weapon Shielding Advanced Shield Generator Hacking Suite > --- WEAPON ----------- Improved Remote Datajack Longsword +1 > --- INVENTORY -------- Improved Cryofiber Web Makeshift Salvage Targeting Computer Makeshift Targeting Computer Phase Shifter Advanced Shield Generator Hacking Suite Relay Coupler [Proto] Improved Trap Extractor KN-7UR's Autopenetrator Improved Datajack Remote Datajack Improved Remote Datajack Plasma Cutter [Rating: 97] Favorites ----------- Power Micro Nuclear Core Engine Reinforced Ion Engine Power Core Micro Nuclear Core Propulsion Light Treads Treads Light Treads Leg Aluminum Leg Wheel Armored Huge Wheel Hover Unit Gravmag System Flight Unit Xenon Bombardment Thruster Utility Humpback Device Microactuators Storage Humpback Processor Advanced Visual Processing Unit Hackware Hacking Suite Protection Hardened Medium Armor Plating Weapon Longsword +1 Energy Gun Improved EM Shotgun Energy Cannon Cooled Particle Cannon Ballistic Gun Autogun Ballistic Cannon Advanced Assault Cannon Launcher Grenade Launcher Special Weapon Mining Laser Impact Weapon Power Maul Slashing Weapon Longsword +1 Special Melee Weapon Improved Datajack Build | -11 -10 -10 -9 -9 -9 -8 -8 -7 -7 -7 -5 ------- Run | Yrd Mat Min Mat Min Exi Min Mat Fac Sto Rec Fac Slots Evolved 10 | . . . 2 . . . 2 2 . . 4 Power . | . . . . . . . . . . . . Propulsion 4 | . . . 2 . . . . . . . 2 Utility 6 | . . . . . . . 2 2 . . 2 Weapon . | . . . . . . . . . . . . Parts Attached 237 | . 6 5 34 7 2 1 44 69 15 13 41 Power 15 | . . . 5 . . . 2 6 . . 2 Engine 10 | . . . 5 . . . 2 3 . . . Core 5 | . . . . . . . . 3 . . 2 Reactor . | . . . . . . . . . . . . Propulsion 54 | . 2 2 9 1 . . 12 14 4 4 6 Treads 15 | . 2 2 4 . . . 7 . . . . Leg 16 | . . . 4 1 . . 5 . . 2 4 Wheel 1 | . . . . . . . . 1 . . . Hover 5 | . . . . . . . . 3 . 2 . Flight 17 | . . . 1 . . . . 10 4 . 2 Utility 81 | . 2 . 5 2 2 . 16 28 2 6 18 Device 38 | . 1 . . 2 . . 7 9 2 5 12 Storage 5 | . . . 1 . 2 . . 2 . . . Processor 5 | . . . . . . . . 4 . . 1 Hackware 4 | . . . . . . . . 1 . . 3 Protection 29 | . 1 . 4 . . . 9 12 . 1 2 Artifact . | . . . . . . . . . . . . Weapon 87 | . 2 3 15 4 . 1 14 21 9 3 15 Energy Gun 21 | . . 1 6 . . . 1 3 3 2 5 Energy Cannon 1 | . . . . . . . . . 1 . . Ballistic Gun 20 | . . . 6 2 . . 6 4 2 . . Ballistic Cannon 2 | . . . . . . . . 2 . . . Launcher 8 | . 2 1 2 1 . 1 1 . . . . Special Weapon 3 | . . . 1 . . . . 1 . . 1 Impact Weapon 2 | . . . . . . . . . . . 2 Slashing Weapon 24 | . . . . . . . 3 11 2 1 7 Piercing Weapon . | . . . . . . . . . . . . Special Melee Weapon 6 | . . 1 . 1 . . 3 . 1 . . Unidentified Prototypes 16 | . . . 5 . . . 2 2 2 3 2 Parts Lost 56 | . . 1 10 1 . 2 2 8 2 5 25 Power 6 | . . . 1 . . . . 1 . . 4 Propulsion 22 | . . . 4 . . 1 1 4 2 3 7 Utility 18 | . . . 2 1 . . . 2 . 1 12 Weapon 10 | . . 1 3 . . 1 1 1 . 1 2 Highest Loss Streak 4 | . . 1 3 1 . 2 1 3 1 4 4 To Critical Strikes . | . . . . . . . . . . . . Average Slot Usage (%) 84 | . 97 95 89 99 90 81 88 80 99 88 64 Engine 6 | . 14 14 10 11 11 11 8 3 . . 1 Core 2 | . . . . . . . . 3 7 5 3 Treads 10 | . 23 28 25 . . . 23 7 . . . Leg 10 | . 4 . 8 44 44 37 12 . . 9 2 Hover 2 | . . . . . . . . 2 . 13 2 Flight 3 | . . . . . . . . 5 29 5 4 Device 7 | . 9 . . 10 2 . 4 7 22 13 14 Storage 8 | . 14 14 11 11 10 11 9 7 7 7 5 Processor 3 | . . . . . . . . 9 7 7 5 Hackware 2 | . . . . . . . . 2 7 7 5 Protection 7 | . 2 14 10 . . . 13 8 . 4 5 Energy Gun 3 | . 14 8 10 . . . . 1 8 6 . Ballistic Gun 6 | . . . 9 18 22 15 7 1 1 3 2 Slashing Weapon 4 | . . . . . . . 7 9 3 . 3 Peak Build Rating 97 | . 8 9 17 22 23 21 39 60 57 78 97 Average Rating 42 | . 7 8 14 18 20 19 33 48 54 61 73 On Entrance 27 | 6 6 8 9 15 22 21 19 38 55 54 71 Naked Turns . | . . . . . . . . . . . . Heaviest Build 242 | 13 18 19 29 29 216 217 229 242 44 41 51 Greatest Support 93 | 20 40 40 83 48 48 48 83 83 24 46 93 Greatest Overweight (x) 24 | . . . 8 . 4 5 5 24 2 2 5 Average Overweight (x) 2 | . . . 1 . 1 4 2 4 1 . . Largest Inventory Capacity 35 | . 8 8 10 10 35 35 35 35 15 15 15 Average Capacity 23 | . 8 8 8 10 29 35 35 31 15 15 15 Most Carried 35 | . 8 8 10 10 19 19 35 35 15 15 15 Average Carried 20 | . 5 7 8 9 15 18 29 30 14 13 14 Final Capacity 35 | 8 8 8 10 10 35 35 35 15 15 15 15 Final Carried 35 | 6 8 8 10 10 19 18 35 15 13 15 15 Scrap Engine Consumption 100 | . . . . . . . . . . 31 69 Constructs Created 15 | . . . . . . . . . . 4 11 Constructs Modified 21 | . . . . . . . . . . 3 18 Class Distribution -------------------- 46% | Hauler-Mutant 27% | Mutant 20% | Scavenger-Mutant 3% | Gladiator Dominant Class ---------------- Mutant | -10/Materials Mutant | -10/Mines Scavenger-Mutant | -9/Materials Scavenger-Mutant | -9/Mines Hauler-Mutant | -9/Exiles Hauler-Mutant | -8/Mines Hauler-Mutant | -8/Materials Hauler-Mutant | -7/Factory Mutant | -7/Storage Scavenger-Mutant | -7/Recycling Mutant | -5/Factory Resources | -11 -10 -10 -9 -9 -9 -8 -8 -7 -7 -7 -5 ----------- Run | Yrd Mat Min Mat Min Exi Min Mat Fac Sto Rec Fac Matter Collected 4122 | 200 201 19 646 317 20 44 647 934 200 186 708 Remotely 201 | . 201 . . . . . . . . . . Salvage Created 8231 | . 352 127 1653 313 . 83 1392 1451 640 362 1858 Parts 489 | . 15 10 115 12 . 4 85 99 31 21 97 Haulers Intercepted 7 | . . . 3 . . . 1 . 2 . 1 Recyclers Shooed 6 | . 2 . 2 1 . . . 1 . . . Parts Field Recycled . | . . . . . . . . . . . . Retrieved Matter . | . . . . . . . . . . . . Parts Self-Destructed . | . . . . . . . . . . . . Prevented . | . . . . . . . . . . . . Kills | -11 -10 -10 -9 -9 -9 -8 -8 -7 -7 -7 -5 ------- Run | Yrd Mat Min Mat Min Exi Min Mat Fac Sto Rec Fac Combat Hostiles Destroyed 146 | . 6 7 36 3 . 3 25 24 7 3 32 Melee 69 | . . . . . . . 23 20 6 . 20 Guns 42 | . 1 . 23 1 . . . 3 1 3 10 Cannons 1 | . . . . . . . . 1 . . . AOE 32 | . 5 7 13 2 . 3 2 . . . . Classes Destroyed 16 | . 3 1 5 . . . 2 2 1 2 . Worker 17 | . . . 5 . . 1 6 2 3 . . Builder 10 | . . . 1 . . . 2 7 . . . Hauler 7 | . . . 3 . . . 1 . 2 . 1 Recycler 14 | . 2 1 2 3 . . . 3 1 . 2 Operator 1 | . . . . . . . . . 1 . . Watcher 10 | . 2 . 4 . . . 3 . 1 . . Swarmer 39 | . . 3 13 . . . 6 5 . . 12 Grunt 58 | . 6 4 16 3 . 3 9 5 7 . 5 Brawler 3 | . . . 1 . . . . . . . 2 Duelist 1 | . . . . . . . 1 . . . . Sentry 20 | . . . 6 . . . 7 4 . . 3 Specialist 2 | . . . . . . . 2 . . . . Hunter 5 | . . . . . . . . 2 . . 3 Programmer 15 | . . . . . . . . 8 . . 7 Scientist 2 | . . . . . . . . . . 2 . Scrapper 3 | . . . . . . . . . . 3 . Best Kill Streak 8 | . 4 4 8 4 . 4 6 4 3 3 4 Combat Bots Only 6 | . 2 4 6 4 . 3 6 4 3 2 4 Max Kills in Single Turn 4 | . 2 2 4 1 . 1 1 1 2 2 1 Gunslinging . | . . . . . . . . . . . . Exploded 3 | . 1 2 3 1 . 1 1 . . . . Melee 1 | . . . . . . . 1 1 1 . 1 Uniques/NPCs Destroyed 1 | . . . . . . . . . . 1 . KN-7UR (-7/Recycling) Combat | -11 -10 -10 -9 -9 -9 -8 -8 -7 -7 -7 -5 -------- Run | Yrd Mat Min Mat Min Exi Min Mat Fac Sto Rec Fac Hostile Shots Fired 1131 | . 29 15 179 18 . 16 142 340 42 37 313 Missed 327 | . 11 5 57 3 . 4 41 103 15 12 76 Damage Taken 11725 | . 386 180 1631 265 . 271 1318 2842 410 316 4106 Core 1654 | . 145 15 228 26 . . 63 428 74 42 633 Absorbed by Shields 565 | . . . . . . . . . 115 48 402 Redirected to Shielding 68 | . . . . . . . . . . 11 57 Regen/Repaired (Parts) 719 | . . . . . . . . 42 . 20 657 Core Remaining (%) 56 | 100 . 36 . . . 36 88 . . 22 . Volleys Fired 323 | . 20 12 96 15 . 11 12 45 27 30 55 Largest 2 | . 2 2 2 2 . 2 2 2 2 2 2 Hottest 162 | . 80 86 100 53 . 56 56 105 100 120 162 Shots Fired 505 | . 39 18 167 30 . 18 18 56 38 35 86 Gun 425 | . 20 3 156 28 . 14 15 32 37 35 85 Cannon 25 | . . . . . . . . 24 1 . . Launcher 48 | . 19 15 5 2 . 4 3 . . . . Special 7 | . . . 6 . . . . . . . 1 Kinetic 255 | . . . 54 28 . 14 15 46 15 18 65 Thermal 105 | . 20 3 16 . . . . 10 23 17 16 Explosive 48 | . 19 15 5 2 . 4 3 . . . . Electromagnetic 96 | . . . 92 . . . . . . . 4 Robot Hit Streak 11 | . 7 5 11 11 . 5 4 6 8 8 10 Robot Miss Streak 10 | . 3 1 10 1 . 2 6 8 6 3 5 Penetration Max 1 | . . . . . . . . . . 1 . Secondary Targets 2 | . . . 1 . . . . . . . 1 Max Gunslinging Chain 1 | . . . 1 . . . . . . . 1 Shots Hit Robots 550 | . 27 8 104 25 . 12 79 103 43 18 131 Core Hits 299 | . 19 14 74 9 . 9 37 47 16 14 60 Critical Kills 2 | . . . . . . . . . . . 2 Critical Parts Destroyed 2 | . . . . . . . . . . . 2 Critical Strikes 36 | . 2 . 1 . . . 4 9 4 . 16 Burn 4 | . 2 . 1 . . . . . 1 . . Destroy 1 | . . . . . . . . . . . 1 Smash 3 | . . . . . . . . . . . 3 Sever 28 | . . . . . . . 4 9 3 . 12 Melee Attacks 305 | . . . . 1 . . 83 111 25 5 80 Impact 19 | . . . . . . . . . . . 19 Slashing 284 | . . . . . . . 82 111 25 5 61 Piercing . | . . . . . . . . . . . . Sneak Attacks 39 | . . . . 1 . . 14 11 6 3 4 Combat Hostiles 5 | . . . . . . . 2 2 1 . . Follow-up Attacks 8 | . . . . . . . . 4 1 . 3 Damage Inflicted 20648 | . 811 712 2816 542 . 584 4085 4276 1706 735 4381 Guns 4983 | . 213 . 1613 318 . 146 71 395 453 373 1401 Cannons 182 | . . . . . . . . 182 . . . Explosions 3505 | . 598 712 1203 224 . 438 236 94 . . . Melee 11978 | . . . . . . . 3778 3605 1253 362 2980 Ramming . | . . . . . . . . . . . . Kinetic 2453 | . . . 492 318 . 146 71 348 131 . 947 Thermal 2372 | . 213 . 801 . . . . 229 322 373 434 Explosive 2819 | . 598 712 517 224 . 438 236 94 . . . Electromagnetic 1026 | . . . 1006 . . . . . . . 20 Impact 488 | . . . . . . . . . . . 488 Slashing 11490 | . . . . . . . 3778 3605 1253 362 2492 Piercing . | . . . . . . . . . . . . Highest Corruption 17 | . . . . . . . . 4 . . 17 Average Corruption 8 | . . . . . . . . 3 . . 12 Corruption Purged 5 | . . . . . . . . 5 . . . Corruption Blocked 1 | . . . . . . . . 1 . . . Effects 106 | . . . . . . . . 23 . . 83 Message Errors 30 | . . . . . . . . 3 . . 27 Matter Fused 28 | . . . . . . . . 5 . . 23 Heat Flow Errors 10 | . . . . . . . . 4 . . 6 Energy Discharges 13 | . . . . . . . . 1 . . 12 Parts Rejected 1 | . . . . . . . . 1 . . . Parts Fused 2 | . . . . . . . . 1 . . 1 Data Loss (minor) 13 | . . . . . . . . 4 . . 9 Data Loss (major) 3 | . . . . . . . . . . . 3 Misfires 1 | . . . . . . . . 1 . . . Alerts 4 | . . . . . . . . 2 . . 2 Weapon Failures 1 | . . . . . . . . 1 . . . Overload Shots 1 | . . . . . . . . . 1 . . Overflow Damage 1280 | . . . 69 18 . 13 300 409 192 46 233 Projectiles . | . . . . . . . . . . . . Explosions 109 | . . . 69 18 . 13 9 . . . . Melee 1171 | . . . . . . . 291 409 192 46 233 Knockbacks 5 | . . . . . . . . 3 . . 2 Impact 2 | . . . . . . . . . . . 2 Kinetic 3 | . . . . . . . . 3 . . . Secondary . | . . . . . . . . . . . . Self-Inflicted Damage 586 | . 160 40 245 57 . . 15 69 . . . Shots 21 | . 7 1 9 2 . . 1 1 . . . Rammed 1 | . . . . . . . . . 1 . . Targets Rammed 1 | . . . . . . . . . 1 . . Kicked . | . . . . . . . . . . . . Crushed . | . . . . . . . . . . . . Highest Temperature 350 | . 297 66 350 26 . 82 77 262 68 30 340 Average Temperature 67 | . 97 25 65 12 . 34 25 74 18 15 99 Received Heat Transfer 2109 | . 129 81 384 114 . 108 351 225 100 124 493 Effects 2 | . . . 2 . . . . . . . . Interference 2 | . . . 2 . . . . . . . . Siege Activations . | . . . . . . . . . . . . Robots Corrupted 2 | . . . . . . . . . . . 2 Combat Hostiles 2 | . . . . . . . . . . . 2 Parts Fried 10 | . . . 4 . . . 4 . . . 2 Impact Corruptions 3 | . . . . . . . . . . . 3 Robots Melted . | . . . . . . . . . . . . Combat Hostiles . | . . . . . . . . . . . . Parts Melted 9 | . 2 . . . . . . . 1 2 4 Heat Transferred 4294 | . 777 . 1170 . . . . 380 620 397 950 Parts Sabotaged . | . . . . . . . . . . . . Parts Stolen . | . . . . . . . . . . . . Parts Stripped . | . . . . . . . . . . . . Power Chain Reactions 9 | . . . 9 . . . . . . . . Alert | -11 -10 -10 -9 -9 -9 -8 -8 -7 -7 -7 -5 ------- Run | Yrd Mat Min Mat Min Exi Min Mat Fac Sto Rec Fac Peak Influence 897 | . 386 331 897 442 . 99 411 438 482 173 425 Initial 349 | . . 72 128 349 . . . 186 198 100 250 Average 197 | . 185 232 448 335 . 57 147 106 332 29 301 Maximum Alert Level 3 | . 1 1 3 2 . . 2 2 2 . 2 Low Security (%) 52 | . 69 12 23 . . 100 64 81 . 100 1 Level 1 37 | . 30 87 27 51 . . 31 17 83 . 95 Level 2 5 | . . . 8 48 . . 3 1 16 . 3 Level 3 4 | . . . 40 . . . . . . . . Level 4 . | . . . . . . . . . . . . Level 5 . | . . . . . . . . . . . . High Security . | . . . . . . . . . . . . Max Security . | . . . . . . . . . . . . Squads Dispatched 35 | . 1 . 3 . . . 1 12 11 . 7 Investigation 12 | . 1 . 2 . . . . 2 5 . 2 Extermination 14 | . . . . . . . . 7 2 . 5 Reinforcement 4 | . . . . . . . 1 2 1 . . Assault 2 | . . . 1 . . . . 1 . . . Garrison 3 | . . . . . . . . . 3 . . Intercept . | . . . . . . . . . . . . Searches Triggered . | . . . . . . . . . . . . Construction Impeded . | . . . . . . . . . . . . Haulers Reinforced 1 | . . . . . . . . . 1 . . Active Scanning Responses . | . . . . . . . . . . . . Cargo Convoy Interrupts . | . . . . . . . . . . . . Stealth | -11 -10 -10 -9 -9 -9 -8 -8 -7 -7 -7 -5 --------- Run | Yrd Mat Min Mat Min Exi Min Mat Fac Sto Rec Fac Distress Signals 10 | . . . 2 . . . 3 . 3 . 2 Communications Jammed 3 | . . . . . . . . 2 1 . . Distress Signals 2 | . . . . . . . . 1 1 . . Times Spotted 257 | . 8 7 53 6 . 3 50 43 38 6 43 Peak Tracking Total 6 | . 2 2 6 3 . 3 5 4 5 1 5 Tactical Retreats 26 | . . . 7 . . . 7 5 3 . 4 Traps | -11 -10 -10 -9 -9 -9 -8 -8 -7 -7 -7 -5 ------- Run | Yrd Mat Min Mat Min Exi Min Mat Fac Sto Rec Fac Traps Triggered 7 | . . . . . . . . 2 2 . 3 Indirectly . | . . . . . . . . . . . . Trap Hack Attempts 150 | . . . . 48 . . 80 . 22 . . Triggered . | . . . . . . . . . . . . Disarmed 9 | . . . . 1 . . 5 . 3 . . Reprogrammed 11 | . . . . 3 . . 8 . . . . Reused 5 | . . . . . . . 5 . . . . Traps Extracted 14 | . . . . 3 . . 11 . . . . Installed 14 | . . . . . . . 14 . . . . Triggered 5 | . . . . . . . 5 . . . . Most Traps Carried 8 | . . . . 3 3 3 8 . . . . Machines | -11 -10 -10 -9 -9 -9 -8 -8 -7 -7 -7 -5 ---------- Run | Yrd Mat Min Mat Min Exi Min Mat Fac Sto Rec Fac Machines Disabled 20 | . 5 2 9 . . 1 . 2 1 . . Max in Single Turn 3 | . 1 2 3 . . 1 . 1 1 . . Garrison Access 1 | . . . . . . . . . . . 1 Machines Repaired . | . . . . . . . . . . . . Machines Dismantled . | . . . . . . . . . . . . Machines Sabotaged . | . . . . . . . . . . . . Overloaded Fab Kills . | . . . . . . . . . . . . Hacking | -11 -10 -10 -9 -9 -9 -8 -8 -7 -7 -7 -5 --------- Run | Yrd Mat Min Mat Min Exi Min Mat Fac Sto Rec Fac Machines Accessed 70 | . 3 1 8 1 5 1 12 13 7 13 6 Terminals 43 | . 2 1 5 . . 1 10 9 5 6 4 Fabricators 2 | . . . . . . . . 1 . . 1 Repair Stations 1 | . . . . . . . . 1 . . . Recycling Units 10 | . 1 . 1 . . . . 1 2 5 . Scanalyzers 5 | . . . 2 . . . 2 1 . . . Garrison Access 1 | . . . . . . . . . . . 1 Total Hacks 218 | . 10 2 23 1 25 2 35 35 16 54 15 Successful 157 | . 5 . 16 1 25 1 25 23 7 47 7 Failed 61 | . 5 2 7 . . 1 10 12 9 7 8 Catastrophic 6 | . 1 . 1 . . . . 2 1 1 . Database Lockouts . | . . . . . . . . . . . . Manual 120 | . 8 2 15 . 1 2 29 23 12 20 8 Terminals 119 | . 7 2 14 . . 2 31 24 12 16 11 Fabricators 4 | . . . . . . . . 1 . . 3 Repair Stations 2 | . . . . . . . . 2 . . . Recycling Units 24 | . 3 . 2 . . . . 3 4 12 . Scanalyzers 16 | . . . 7 . . . 4 5 . . . Garrison Access 1 | . . . . . . . . . . . 1 Terminal Hacks 66 | . . . . 1 25 1 6 4 . 27 2 Record 49 | . . . . . 24 . . . . 24 1 Robot Analysis 1 | . . . . . . . 1 . . . . Open Door 1 | . . . . 1 . . . . . . . Open DSF 3 | . . . . . . . . 2 . . 1 Branch Access Points 2 | . . . . . . . 1 1 . . . Terminal Index 1 | . . . . . . . 1 . . . . Alert Level 1 | . . . . . . . 1 . . . . Unreport Threat 2 | . . . . . . . 1 1 . . . Zone Layout 3 | . . . . . . 1 1 . . 1 . Derelict Proto ID Bank 1 | . . . . . 1 . . . . . . Release Object 2 | . . . . . . . . . . 2 . Fabricator Hacks 2 | . . . . . . . . . . . 2 Load Schematic 1 | . . . . . . . . . . . 1 Build 1 | . . . . . . . . . . . 1 Repair Station Hacks 2 | . . . . . . . . 2 . . . Scan Component 1 | . . . . . . . . 1 . . . Repair 1 | . . . . . . . . 1 . . . Recycling Unit Hacks 10 | . 1 . 1 . . . . 1 2 5 . Report Inventory 2 | . . . . . . . . 1 . 1 . Retrieve Components 8 | . 1 . 1 . . . . . 2 4 . Scanalyzer 15 | . . . 7 . . . 4 4 . . . Insert Component 7 | . . . 3 . . . 2 2 . . . Analyze 8 | . . . 4 . . . 2 2 . . . Garrison Access Hacks 1 | . . . . . . . . . . . 1 Seal Access 1 | . . . . . . . . . . . 1 Unauthorized Hacks 61 | . 4 . 8 . . . 15 12 5 15 2 Terminals 51 | . 3 . 7 . . . 15 11 3 10 2 Assimilate 8 | . 1 . 2 . . . 3 2 . . . Botnet 33 | . 2 . 4 . . . 9 7 3 6 2 Detonate 1 | . . . . . . . 1 . . . . Operators 3 | . . . 1 . . . 2 . . . . Skim 6 | . . . . . . . . 2 . 4 . Fabricators . | . . . . . . . . . . . . Repair Stations . | . . . . . . . . . . . . Recycling Units 10 | . 1 . 1 . . . . 1 2 5 . Mask 1 | . . . . . . . . 1 . . . Tunnel 9 | . 1 . 1 . . . . . 2 5 . Scanalyzers . | . . . . . . . . . . . . Garrison Access . | . . . . . . . . . . . . Data Cores Recovered 2 | . . . . . . . . . 2 . . Used . | . . . . . . . . . . . . Hacking Detections 57 | . 3 1 8 . . 1 12 13 7 8 4 Full Trace Events 6 | . . . 2 . . . . 1 1 . 2 Feedback Events . | . . . . . . . . . . . . Feedback Blocked . | . . . . . . . . . . . . Robot Schematics Acquired . | . . . . . . . . . . . . Robots Built . | . . . . . . . . . . . . Authchips . | . . . . . . . . . . . . Time . | . . . . . . . . . . . . Total Robot Build Rating . | . . . . . . . . . . . . Part Schematics Acquired 6 | . . . 2 . . . 2 2 . . . Parts Built 1 | . . . . . . . . . . . 1 Authchips . | . . . . . . . . . . . . Time 36 | . . . . . . . . . . . 36 Total Part Build Rating 3 | . . . . . . . . . . . 3 Parts Repaired 1 | . . . . . . . . 1 . . . Time 22 | . . . . . . . . 22 . . . Parts Recycled . | . . . . . . . . . . . . Recycled Matter . | . . . . . . . . . . . . Retrieved Matter . | . . . . . . . . . . . . Retrieved Components 38 | . 9 . 10 . . . . . 17 2 . Parts Scanalyzed 7 | . . . 3 . . . 2 2 . . . Part Schematics Acquired 6 | . . . 2 . . . 2 2 . . . Parts Damaged . | . . . . . . . . . . . . Bothacking | -11 -10 -10 -9 -9 -9 -8 -8 -7 -7 -7 -5 ------------ Run | Yrd Mat Min Mat Min Exi Min Mat Fac Sto Rec Fac Used RIF Installer . | . . . . . . . . . . . . Robots Hacked 2 | . . . . 1 . . 1 . . . . Non-combat 2 | . . . . 1 . . 1 . . . . Combat . | . . . . . . . . . . . . Robot Hacks Applied 2 | . . . . 1 . . 1 . . . . no_distress 2 | . . . . 1 . . 1 . . . . Relay Couplers Released . | . . . . . . . . . . . . Fabnet Peak Effective % . | . . . . . . . . . . . . Robots Rewired . | . . . . . . . . . . . . Allies Hacked . | . . . . . . . . . . . . Hacks Repelled . | . . . . . . . . . . . . Allies | -11 -10 -10 -9 -9 -9 -8 -8 -7 -7 -7 -5 -------- Run | Yrd Mat Min Mat Min Exi Min Mat Fac Sto Rec Fac Total Allies 2 | . . . 1 1 . . . . . . . Largest Group 2 | . . . 1 2 2 1 1 1 . . . Highest-Rated Group 40 | . . . 10 40 40 9 9 9 . . . Highest-Rated Ally 31 | . . . 10 31 31 9 9 9 . . . Total Orders 17 | . . . . 2 . 2 12 1 . . . STAY 9 | . . . . 1 . 1 6 1 . . . FOLLOW 8 | . . . . 1 . 1 6 . . . . Ally Attacks . | . . . . . . . . . . . . Total Damage . | . . . . . . . . . . . . Kills . | . . . . . . . . . . . . Allies Corrupted . | . . . . . . . . . . . . Allies Melted . | . . . . . . . . . . . . Intel | -11 -10 -10 -9 -9 -9 -8 -8 -7 -7 -7 -5 ------- Run | Yrd Mat Min Mat Min Exi Min Mat Fac Sto Rec Fac Robot Analysis Total 1 | . . . . . . . 1 . . . . Derelict Logs Recovered 3 | . . 2 . 1 . . . . . . . Drone Launches . | . . . . . . . . . . . . Drone Recoveries . | . . . . . . . . . . . . Exploration | -11 -10 -10 -9 -9 -9 -8 -8 -7 -7 -7 -5 ------------- Run | Yrd Mat Min Mat Min Exi Min Mat Fac Sto Rec Fac Turns Passed 23439 | . 479 366 2516 800 1373 409 5593 4851 1032 2681 3339 Spaces Moved 9009 | 1 266 204 985 557 535 78 1427 2014 608 1165 1169 Core 162 | . . . 149 . . . . . . . 13 Treads 2389 | . 206 204 696 . . . 967 316 . . . Legs 2755 | 1 60 . 140 557 535 78 460 . . 526 398 Wheels 1024 | . . . . . . . . 1024 . . . Hover 812 | . . . . . . . . 7 . 388 417 Flight 1867 | . . . . . . . . 667 608 251 341 Fastest Speed 35 | 120 120 160 120 120 120 400 320 111 111 90 35 Average Speed 202 | 120 150 160 211 120 253 445 349 210 111 123 146 Slowest Speed 1500 | 120 160 160 450 120 400 470 490 1500 194 176 536 Overloaded Moves . | . . . . . . . . . . . . Propulsion Burnouts . | . . . . . . . . . . . . Robots Hopped 1 | . . . . . . . . . . . 1 Cave-ins Triggered . | . . . . . . . . . . . . Exploration Rate (%) 57 | 1 57 62 72 96 70 12 71 42 82 98 21 Regions Visited 11 Branch Regions 6 Pre-discovered Areas 12 | . 1 1 1 1 1 . . . 2 5 . Known Exits Taken 3 | . . . 1 . . 1 . 1 . . . Unknown Exits Taken 8 | 1 1 1 . 1 1 . 1 . 1 1 . Scrap Searched 3 | . . . . 3 . . . . . . . Spaces Dug 37 | . . . 6 . . . 5 22 . 2 2 Terrain Destroyed 407 | . 70 74 124 29 . 37 32 33 . 2 6 Melee 28 | . . . . . . . 5 21 . . 2 Projectile 16 | . . . 6 . . . . 8 . 2 . AOE 359 | . 70 74 118 29 . 37 27 4 . . . Terrain Rammed . | . . . . . . . . . . . . Walls Destroyed . | . . . . . . . . . . . . Machines Disabled . | . . . . . . . . . . . . Actions | -11 -10 -10 -9 -9 -9 -8 -8 -7 -7 -7 -5 --------- Run | Yrd Mat Min Mat Min Exi Min Mat Fac Sto Rec Fac Total 13513 | . 307 227 1235 662 556 127 1957 2508 922 2379 2633 Wait 3139 | . . . 82 21 . 36 213 201 214 1138 1234 Move 8996 | . 265 203 984 556 534 77 1426 2013 607 1164 1167 Hop 1 | . . . . . . . . . . . 1 Pick Up 151 | . 8 2 13 6 17 1 43 25 5 11 20 Fast Attach 69 | . 2 2 19 2 1 . 7 17 3 4 12 Attach 75 | . 3 . 3 . . 1 7 27 2 6 26 Detach 39 | . . . 2 . 1 . 5 11 . 5 15 Swap 95 | . 1 3 13 5 1 . 30 25 10 3 4 Drop 172 | . 8 5 23 8 2 1 37 44 8 13 23 Fire 323 | . 20 12 96 15 . 11 12 45 27 30 55 Melee 288 | . . . . 1 . . 83 100 23 5 76 Ram 1 | . . . . . . . . . 1 . . Kick . | . . . . . . . . . . . . Crush . | . . . . . . . . . . . . Escape Stasis . | . . . . . . . . . . . . Rewire . | . . . . . . . . . . . . Trap 164 | . . . . 48 . . 94 . 22 . . Miscellaneous . | . . . . . . . . . . . . Route ------- -11/Scrapyard -10/Materials (discovered 3 exits: *Mat x2 / *Min) -10/Mines (discovered 2 exits: *Mat x2) -9/Materials (discovered 5 exits: *Mat x3 / *Min x2) -9/Mines (discovered 3 exits: *Mat x2 / *Exi) -9/Exiles -8/Mines -8/Materials -7/Factory (discovered 4 exits: [*Fac] / *Sto / *Low x2) -7/Storage (discovered 2 exits: [*Fac] / *Rec) -7/Recycling -5/Factory (discovered 2 exits: [*Fac x2]) History --------- Turn | Location | Event 1 | -11/Scrapyard | Discovered new exit (range 0) 1 | -11/Scrapyard | Entered Materials 166 | -10/Materials | Discovered new exit (range 12) 275 | -10/Materials | Core integrity fell below 50% 286 | -10/Materials | Discovered new exit (range 15) 311 | -10/Materials | Build established: Mutant 429 | -10/Materials | Discovered new exit (range 16) 480 | -10/Materials | Entered Mines 485 | -10/Mines | Learned 2 Materials zone layouts 597 | -10/Mines | Discovered new exit (range 10) 607 | -10/Mines | Joined a pair of Derelicts in attacking an 0b10 outpost 792 | -10/Mines | Discovered new exit (range 9) 846 | -10/Mines | Entered Materials 846 | -9/Materials | Evolved 2 slots: Propulsion x2 847 | -9/Materials | Identified exit to Mines 847 | -9/Materials | Identified exit to Materials 1099 | -9/Materials | Discovered exit to Mines (range 8) 1343 | -9/Materials | Discovered exit to Materials (range 13) 1765 | -9/Materials | Build established: Scavenger-Mutant 2037 | -9/Materials | Discovered exit to Materials (range 5) 2141 | -9/Materials | Build established: Mutant 2175 | -9/Materials | Lost 3 parts (2n1w) 2646 | -9/Materials | Build established: Scavenger-Mutant 3246 | -9/Materials | First assault squad dispatched 3321 | -9/Materials | Core integrity fell below 50% 3362 | -9/Materials | Entered Mines 3362 | -9/Mines | Accompanied by 1 ally 3547 | -9/Mines | Received a Rocket Launcher from a helpful Derelict 3648 | -9/Mines | Discovered exit to Materials (range 6) 3749 | -9/Mines | Met a Derelict who couldn't figure out how to use a Trap Extractor 3872 | -9/Mines | Learned Materials trap positions 3881 | -9/Mines | Discovered exit to Materials (range 8) 4040 | -9/Mines | Escorted by a lone wolf Derelict 4060 | -9/Mines | Learned location of Storage (-7) 4138 | -9/Mines | Deemed a non-threat by the Exiles lab entrance 4139 | -9/Mines | Discovered new exit (range 5) 4162 | -9/Mines | Entered Exiles 4162 | -9/Exiles | Accompanied by 2 allies 4192 | -9/Exiles | Met 8R-AWN 4213 | -9/Exiles | Met EX-HEX 4423 | -9/Exiles | Met EX-DEC 4782 | -9/Exiles | Learned location of Zion (-6) 4792 | -9/Exiles | Build established: Hauler-Mutant 4846 | -9/Exiles | Met EX-BIN 4910 | -9/Exiles | Aligned with FarCom system 4914 | -9/Exiles | Given EX-Vault access code 5098 | -9/Exiles | Opened EX-Vault 5118 | -9/Exiles | Found Longsword +1 5203 | -9/Exiles | Warned to stay clear of 0b10 Research branches 5479 | -9/Exiles | Discovered new exit (range 11) 5535 | -9/Exiles | Left Exiles lab with Longsword +1 5535 | -9/Exiles | Entered Mines 5535 | -8/Mines | Accompanied by 1 ally 5873 | -8/Mines | Discovered exit to Materials (range 9) 5944 | -8/Mines | Entered Materials 5944 | -8/Materials | Accompanied by 1 ally 5944 | -8/Materials | Evolved 2 slots: Utility x2 5945 | -8/Materials | Loaded intel: 17 trap records 10829 | -8/Materials | Discovered new exit (range 3) 11537 | -8/Materials | Entered Factory 11537 | -7/Factory | Accompanied by 1 ally 11537 | -7/Factory | Evolved 2 slots: Utility x2 11734 | -7/Factory | Discovered new exit (range 7) 13401 | -7/Factory | Discovered new exit (range 15) 15461 | -7/Factory | Core integrity fell below 50% 15511 | -7/Factory | Lost 3 parts (1p1n1u) 15848 | -7/Factory | Repaired Gravmag System 15942 | -7/Factory | Build established: Gladiator 16225 | -7/Factory | Identified exit to Storage 16225 | -7/Factory | Identified exit to Lower Caves 16337 | -7/Factory | First assault squad dispatched 16388 | -7/Factory | Entered Storage 16653 | -7/Storage | Met 01-MTF 16793 | -7/Storage | Garrison activated, responded to threat 16819 | -7/Storage | Build established: Mutant 17134 | -7/Storage | Discovered new exit (range 9) 17287 | -7/Storage | Discovered new exit (range 7) 17420 | -7/Storage | Entered Recycling 17420 | -7/Recycling | Accompanied by 2 allies (01-MTF) 17741 | -7/Recycling | Lost 4 parts (3n1u) 17816 | -7/Recycling | Discovered new exit (range 13) 18230 | -7/Recycling | Scanned before Scraplab entrance 18248 | -7/Recycling | Murdered KN-7UR 18264 | -7/Recycling | Found Relay Coupler [Proto] 18275 | -7/Recycling | Found Prototype Energy Gun 18275 | -7/Recycling | Identified KN-7UR's Autopenetrator 18317 | -7/Recycling | Entered Scraplab 18364 | -7/Recycling | Angered Scraplab inhabitants 18475 | -7/Recycling | Found Prototype Device 18475 | -7/Recycling | Identified Scrap Engine 18563 | -7/Recycling | Build established: Scavenger-Mutant 20101 | -7/Recycling | Entered Factory 20101 | -5/Factory | Evolved 4 slots: Propulsion x2, Utility x2 20330 | -5/Factory | Lost 3 parts (1p1n1u) 20558 | -5/Factory | Lost 3 parts (1p1n1w) 20888 | -5/Factory | Build established: Mutant 21442 | -5/Factory | System corruption reached 10% 21732 | -5/Factory | Discovered new exit (range 6) 21800 | -5/Factory | Fabricated Hacking Suite? 21891 | -5/Factory | Lost 4 parts (1p1n2u) 22433 | -5/Factory | Core integrity fell below 50% 22980 | -5/Factory | Discovered new exit (range 19) 23440 | -5/Factory | Self-destructed Last Messages --------------- Heat +1. 23079_ System corrupted: Energy discharge (-43). 23087_ Arm. Scrap Engine consumes KE Penetrator. 23098_ Q 8TJUVSW9S>MK8 23354_ System corrupted: Heat flow error (+197). 23372_ System corrupted: Matter fused (-9). 23400_ Acquired 72 matter. 23413_ RTV|NNW8MV&ICB&J=KBBXXJILR04SMLZK>X=KT 23429_ System corrupted: Matter fused (-10). 23435_ ALERT: Rogue bot located, Programmers report to Factory Zone 2B. 23437_ Longsword +1 destroyed. 23438_ Arm. Scrap Engine constructs Ballistic Penetrator Construct/G. Map ----- +----------------------------------------------------+ | ?????????????????????????????????????????????????? | | ?????????????????????????????????????????????????? | | ?????????????????????????????????????????????????? | | ?????????????????????????????????????????????????? | | ?????????????????????????????????????????????????? | | ?????????????????????????????????????????????????? | | ?????????????????????????????????????????????????? | | ?????????????????????????????????????????????????? | | ?????????????????????????????????????????????????? | | ??????????????????#####??????????????????????????? | | ????????????????# ??????????????????????????? | | ????????????????# ??????????????????????????? | | ????????????????# ??????????????????????????? | | ????????????????# ??????????????????????????? | | ????????????????# ??????????????????????????? | | ????????????????# #??????????????????????????? | | ????????????????# #??????????????????????????? | | ????????????????# #??????????????????????????? | | ????????????????# #??????????????????????????? | | ????????????????# #??????????????????????????? | | ????????????????# +??????????????????????????? | | ????????????????# #??????????????????????????? | | ??? ??????????# #??????????????????????????? | | ??? ######### ####+##########????????????? | | ??# #????????????? | | ??# p @ ############## | | ??# # # | | ??+ # """ # | | ??# < p # """"" # | | ?????? ###########+########### # """"" # | | ?????????????# ## # # # | | ?????????????# ##### # """ # | | ?????????????# ##### # """"" # | | ?????????????# ! + + """"" # | | ????????????## !! ##### # # | | ????????????# ! !! #??## # # | | ????????????## #???# # # | | ?????????????# ##### = # # | | ?????????????# + ! ###+#####+#### | | ?????????????# ### #######?# ????# | | ?????????????# #?# #???????# ????# | | ?????????????# #?# #???????# ????# | | ?????????????##############?# #???????# ##### | | ?????????????????# ### ###????## | | ?????????????????# """" # #????# | | ?????????????????# """" # ###### | | ?????????????????# """" + | | ?????????????????# """" # ########### | | ?????????????????# """" # #??????######+#### | | ?????????????????# """" #######??????# | +----------------------------------------------------+ Best States ------------- Heat Dissipation 100 Energy Generation 22 Energy Capacity 298 Matter Stores 300 Matter Capacity 300 Sight Range 20 Terrain Scan Density 10 ECM Strength 1 Jamming Range 12 Additional Mass Support 9 Base Temperature (-) 150 Corruption Block 8 Armor Coverage 900 Weapon Shielding 15 Melee Speed Boost 40 Phase Shifting 5 Evasion (%) 63 Targeting Accuracy 16 Recoil Reduction 6 Offensive Hacking 20 Trap Extractor Capacity 12 Item Schematics ----------------- Imp. EM Shotgun | -9/Materials | Scanalyzed Autogun | -9/Materials | Scanalyzed Imp. Trap Extractor | -8/Materials | Scanalyzed Hacking Suite | -8/Materials | Scanalyzed Hvy. Armor Plating | -7/Factory | Scanalyzed Adv. Visual Processing Unit | -7/Factory | Scanalyzed Robot Schematics ------------------ None Fabricated ------------ Hacking Suite | x1 | -5/Factory Alien Tech Used ----------------- None Achievements -------------- Collateral Damage Watch This! Challenges ------------ None Game ------ Seed TripodBombBasin Manual? 0 Play Time 02:41:27 Cumulative 100.0 hours Start 2024.11.17 @ 08:01:05 End 2024.11.17 @ 11:44:29 Sessions 9 Manual Loads 0 Difficulty Rogue Special Mode None Game No. 176 Rogue 176 Adventurer 0 Explorer 0 Win Type - Total 0 Types 0/0/0/0/0/0/0/0/0 Lore% 42 Gallery% 39 Achievement% 35 Wizard Run 0 Options --------- Layout 0 ASCII 0 Keyboard 0 Movement Mouse Keybinds 0 Fullscreen 1 Font 24/Cog Map View 91x25 Zoom Use 91% Tactical HUD 1 Map Filters NONE Filters NONE Steam 1 RUN: 379d5196-40fa-447e-b7f5-357fb6128aa7